Cogmind - Beta 11.1 @@@ ROGUE MODE // 2022.05.07 @ 22:03:44 Player: darki Result: Destroyed by P-70 Sage with Tesla Rifle Performance ------------- Evolutions (5) 2500 Regions Visited (10) 2000 Robots Destroyed (11) 55 Value Destroyed (227) 227 Prototype IDs (8) 160 Alien Tech Used (1) 200 Bonus (1014) 1014 TOTAL SCORE: 6156 Bonus ------- Follower Combat Kills 214 Entered DSFs 500 Aligned with FarCom 300 Cogmind --------- Core Integrity 0/1000 Matter 300/300 Energy 98/100 System Corruption 5% Temperature Cool (0) Movement Core (50) Location -5/Upper Caves Parts ------- > --- POWER (2) -------- (None) > --- PROPULSION (8) --- (None) > --- UTILITY (5) ------ Advanced Signal Interpreter > --- WEAPON (2) ------- (None) > --- INVENTORY (5) ---- Improved VSS Leg Authchip [R/NC] Heavy Plasma Cannon Peak State ------------ > --- POWER ------------ Cold Fusion Reactor > --- PROPULSION ------- Armored Huge Wheel Armored Huge Wheel Armored Huge Wheel Armored Huge Wheel > --- UTILITY ---------- Lightpack 2.0 Enhanced Optical Array Advanced Signal Interpreter > --- WEAPON ----------- Molecular Deconstructor > --- INVENTORY -------- Flexi-carbon Leg Flexi-carbon Leg Improved VSS Leg Armored Huge Wheel Authchip [R/NC] Heavy Plasma Cannon Assault Rifle Improved Plasma Cutter [Rating: 99] Favorites ----------- Power Ion Engine Engine Ion Engine Power Core Nuclear Core Reactor Cold Fusion Reactor Propulsion Armored Huge Wheel Leg Flexi-carbon Leg Wheel Armored Huge Wheel Hover Unit Airjet Flight Unit Xenon Bombardment Thruster Utility Lightpack 2.0 Device Trap Reconfigurator Storage Lightpack 2.0 Processor Enhanced Optical Array Hackware Authchip [R/Combat] Weapon Light Assault Rifle Energy Gun Small Laser Energy Cannon Latent Energy Streamer Ballistic Gun Light Assault Rifle Ballistic Cannon Heavy Flak Cannon Special Weapon Mining Laser Impact Weapon Mace Build | -11 -10 -10 -10 -9 -8 -7 -7 -6 -5 -5 ------- Run | Scr Mat Min Exi Min Mat Fac DSF Fac Fac Upp Slots Evolved 10 | . . . . . 4 2 . 2 2 . Power 1 | . . . . . 1 . . . . . Propulsion 6 | . . . . . 2 . . 2 2 . Utility 3 | . . . . . 1 2 . . . . Weapon . | . . . . . . . . . . . Parts Attached 70 | 6 . 2 5 . 3 7 7 16 10 14 Power 6 | 1 . . . . . 1 1 1 . 2 Engine 2 | 1 . . . . . . . . . 1 Core 3 | . . . . . . 1 1 . . 1 Reactor 1 | . . . . . . . . 1 . . Propulsion 38 | 2 . 2 . . 1 4 6 9 7 7 Treads . | . . . . . . . . . . . Leg 13 | . . . . . . . 4 2 1 6 Wheel 7 | 2 . . . . . . . 1 3 1 Hover 9 | . . . . . . 4 2 1 2 . Flight 9 | . . 2 . . 1 . . 5 1 . Utility 8 | 1 . . 1 . 1 2 . 2 1 . Device 1 | . . . 1 . . . . . . . Storage 2 | 1 . . . . 1 . . . . . Processor 4 | . . . . . . 2 . 1 1 . Hackware 1 | . . . . . . . . 1 . . Protection . | . . . . . . . . . . . Artifact . | . . . . . . . . . . . Weapon 18 | 2 . . 4 . 1 . . 4 2 5 Energy Gun 2 | 1 . . . . . . . 1 . . Energy Cannon 5 | . . . 2 . . . . 1 . 2 Ballistic Gun 3 | 1 . . 2 . . . . . . . Ballistic Cannon 1 | . . . . . . . . 1 . . Launcher . | . . . . . . . . . . . Special Weapon 5 | . . . . . 1 . . . 1 3 Impact Weapon 2 | . . . . . . . . 1 1 . Slashing Weapon . | . . . . . . . . . . . Piercing Weapon . | . . . . . . . . . . . Special Melee Weapon . | . . . . . . . . . . . Unidentified Prototypes 9 | . . . 2 . 1 . . 4 . 2 Parts Lost 26 | . . . . . . . 9 . 5 12 Power 4 | . . . . . . . 2 . . 2 Propulsion 18 | . . . . . . . 5 . 4 9 Utility 2 | . . . . . . . 1 . 1 . Weapon 2 | . . . . . . . 1 . . 1 Highest Loss Streak 8 | . . . . . . . 8 . 5 6 To Critical Strikes . | . . . . . . . . . . . Average Slot Usage (%) 56 | . 85 73 63 71 56 72 56 57 60 41 Engine 4 | . 14 14 14 14 9 7 2 . . 1 Reactor 2 | . . . . . . . . 3 5 2 Leg 3 | . . . . . . . 11 4 . 8 Wheel 6 | . 28 7 . . . . . 6 9 12 Hover 2 | . . . . . . 28 15 . 7 . Flight 15 | . . 21 28 28 27 . . 18 16 . Storage 5 | . 14 2 . . 9 7 7 6 5 4 Processor 4 | . . . . . . 12 11 6 5 6 Hackware 1 | . . . . . . . . 5 3 . Energy Gun 1 | . 14 14 4 . . . . . . . Ballistic Gun 3 | . 14 14 9 28 9 . . . . . Special Weapon 1 | . . . . . 2 7 2 . . 1 Naked Turns . | . . . . . . . . . . . Heaviest Build 28 | 12 12 12 15 8 13 16 16 17 19 28 Greatest Support 112 | 32 32 32 8 8 12 31 80 80 112 112 Greatest Overweight (x) 3 | 3 . 1 1 . 1 . . 1 . . Average Overweight (x) . | . . . . . . . . . . . Largest Inventory Capacity 40 | 8 8 8 5 5 40 40 40 40 40 40 Average Capacity 32 | 7 8 5 5 5 40 40 40 40 40 35 Most Carried 21 | 2 2 5 5 5 15 15 21 21 19 11 Average Carried 10 | . 2 4 4 5 9 8 11 17 14 6 Final Capacity 40 | 8 8 5 5 5 40 40 40 40 40 5 Final Carried 20 | 2 2 5 5 5 15 8 20 19 9 3 Class Distribution -------------------- 78% | Hauler-Mutant 21% | Mutant Dominant Class ---------------- Mutant | -10/Materials Mutant | -10/Mines Mutant | -10/Exiles Mutant | -9/Mines Hauler-Mutant | -8/Materials Hauler-Mutant | -7/Factory Hauler-Mutant | -7/DSF Hauler-Mutant | -6/Factory Hauler-Mutant | -5/Factory Hauler-Mutant | -5/Upper Caves Resources | -11 -10 -10 -10 -9 -8 -7 -7 -6 -5 -5 ----------- Run | Scr Mat Min Exi Min Mat Fac DSF Fac Fac Upp Matter Collected 872 | 178 . 91 . . 132 . . . 298 173 Remotely . | . . . . . . . . . . . Salvage Created 258 | 16 . 79 . . 10 . . . 16 137 Parts 23 | 2 . 13 . . 1 . . . . 7 Haulers Intercepted 1 | . . . . . 1 . . . . . Recyclers Shooed 1 | . . . . . 1 . . . . . Parts Field Recycled . | . . . . . . . . . . . Retrieved Matter . | . . . . . . . . . . . Parts Self-Destructed 9 | . . . . . . . . . . 9 Prevented . | . . . . . . . . . . . Kills | -11 -10 -10 -10 -9 -8 -7 -7 -6 -5 -5 ------- Run | Scr Mat Min Exi Min Mat Fac DSF Fac Fac Upp Combat Hostiles Destroyed 8 | . . 5 . . . . . . . 3 Guns 5 | . . 5 . . . . . . . . Classes Destroyed 5 | 1 . 1 . . 1 . . . 1 1 Worker 1 | . . . . . . . . . 1 . Tunneler 1 | 1 . . . . . . . . . . Hauler 1 | . . . . . 1 . . . . . Swarmer 5 | . . 5 . . . . . . . . Grunt 3 | . . . . . . . . . . 3 Best Kill Streak 3 | 1 . 3 . . 1 . . . 1 2 Combat Bots Only 3 | . . 3 . . . . . . . 2 Max Kills in Single Turn 2 | 1 . 2 . . 1 . . . 1 1 Gunslinging 1 | . . 1 . . . . . . . . Exploded . | . . . . . . . . . . . Melee . | . . . . . . . . . . . Uniques/NPCs Destroyed . | . . . . . . . . . . . Combat | -11 -10 -10 -10 -9 -8 -7 -7 -6 -5 -5 -------- Run | Scr Mat Min Exi Min Mat Fac DSF Fac Fac Upp Damage Taken 5377 | . 55 94 . . 166 . 1473 92 1152 2345 Core 1562 | . 7 6 . . 29 . 499 6 354 661 Absorbed by Shields 15 | . . . . . . . 15 . . . Core Remaining (%) 83 | 100 . . . 94 94 . 28 99 . . Volleys Fired 43 | 2 . 7 . . 18 . . 3 2 11 Largest 2 | 2 . 2 . . 2 . . 1 1 1 Hottest 100 | 60 . 60 . . 100 . . 90 20 90 Shots Fired 60 | 4 . 14 . . 26 . . 3 2 11 Gun 35 | 4 . 14 . . 16 . . 1 . . Cannon 5 | . . . . . . . . 2 . 3 Launcher . | . . . . . . . . . . . Special 20 | . . . . . 10 . . . 2 8 Kinetic 26 | 2 . 7 . . 16 . . 1 . . Thermal 26 | 2 . 7 . . 10 . . 1 2 4 Explosive . | . . . . . . . . . . . Electromagnetic 1 | . . . . . . . . 1 . . Robot Hit Streak 5 | 3 . 4 . . 5 . . . . 3 Robot Miss Streak 4 | . . 4 . . 4 . . . . 2 Penetration Max . | . . . . . . . . . . . Secondary Targets 1 | . . 1 . . . . . . . . Max Gunslinging Chain 1 | . . 1 . . . . . . . . Shots Hit Robots 26 | 3 . 6 . . 11 . . . 2 4 Core Hits 8 | 1 . 5 . . 2 . . . . . Critical Kills . | . . . . . . . . . . . Critical Parts Destroyed . | . . . . . . . . . . . Critical Strikes . | . . . . . . . . . . . Melee Attacks 8 | . . . . . . . . 2 6 . Impact 8 | . . . . . . . . 2 6 . Slashing . | . . . . . . . . . . . Piercing . | . . . . . . . . . . . Sneak Attacks 2 | . . . . . . . . . 2 . Combat Hostiles . | . . . . . . . . . . . Follow-up Attacks . | . . . . . . . . . . . Damage Inflicted 396 | 31 . 82 . . 161 . . . 122 . Guns 226 | 31 . 82 . . 113 . . . . . Cannons . | . . . . . . . . . . . Explosions . | . . . . . . . . . . . Melee 122 | . . . . . . . . . 122 . Ramming . | . . . . . . . . . . . Kinetic 150 | 9 . 28 . . 113 . . . . . Thermal 124 | 22 . 54 . . 48 . . . . . Explosive . | . . . . . . . . . . . Electromagnetic . | . . . . . . . . . . . Impact 122 | . . . . . . . . . 122 . Slashing . | . . . . . . . . . . . Piercing . | . . . . . . . . . . . Highest Corruption 5 | . . . . . . . . . . 5 Average Corruption 4 | . . . . . . . . . . 4 Corruption Purged . | . . . . . . . . . . . Corruption Blocked . | . . . . . . . . . . . Effects 2 | . . . . . . . . . . 2 Matter Fused 2 | . . . . . . . . . . 2 Overload Shots . | . . . . . . . . . . . Overflow Damage 24 | . . . . . . . . . 24 . Projectiles . | . . . . . . . . . . . Explosions . | . . . . . . . . . . . Melee 24 | . . . . . . . . . 24 . Knockbacks 2 | . . . . . . . . . 2 . Impact 2 | . . . . . . . . . 2 . Kinetic . | . . . . . . . . . . . Secondary . | . . . . . . . . . . . Self-Inflicted Damage . | . . . . . . . . . . . Shots . | . . . . . . . . . . . Rammed . | . . . . . . . . . . . Targets Rammed 2 | . . . . . . . 2 . . . Kicked 2 | . . . . . . . 2 . . . Crushed . | . . . . . . . . . . . Highest Temperature 455 | 20 . 40 . . 47 . . 455 . 24 Average Temperature 49 | 15 . 17 . . 15 . . 160 . 8 Received Heat Transfer 991 | . 18 . . . 72 . 180 36 36 649 Siege Activations . | . . . . . . . . . . . Robots Corrupted . | . . . . . . . . . . . Combat Hostiles . | . . . . . . . . . . . Parts Fried 2 | . . . . . . . . . 2 . Impact Corruptions 1 | . . . . . . . . . 1 . Robots Melted . | . . . . . . . . . . . Combat Hostiles . | . . . . . . . . . . . Parts Melted 1 | . . 1 . . . . . . . . Heat Transferred 275 | 50 . 125 . . 100 . . . . . Parts Sabotaged . | . . . . . . . . . . . Parts Stolen . | . . . . . . . . . . . Parts Stripped . | . . . . . . . . . . . Power Chain Reactions . | . . . . . . . . . . . Missiles Intercepted . | . . . . . . . . . . . Alert | -11 -10 -10 -10 -9 -8 -7 -7 -6 -5 -5 ------- Run | Scr Mat Min Exi Min Mat Fac DSF Fac Fac Upp Peak Influence 222 | 5 3 135 . . 222 18 15 41 30 . Initial 18 | . 3 . . . . 18 12 . . . Average 52 | . 3 113 . . 144 18 4 19 10 . Maximum Alert Level 1 | . . . . . 1 . . . . . Low Security (%) 96 | 100 100 100 . 100 85 100 100 100 100 . Level 1 3 | . . . . . 14 . . . . . Level 2 . | . . . . . . . . . . . Level 3 . | . . . . . . . . . . . Level 4 . | . . . . . . . . . . . Level 5 . | . . . . . . . . . . . High Security . | . . . . . . . . . . . Max Security . | . . . . . . . . . . . Squads Dispatched 9 | . 1 . . . 6 . 1 . 1 . Investigation . | . . . . . . . . . . . Extermination . | . . . . . . . . . . . Reinforcement 6 | . 1 . . . 3 . 1 . 1 . Assault . | . . . . . . . . . . . Garrison 3 | . . . . . 3 . . . . . Intercept . | . . . . . . . . . . . Searches Triggered . | . . . . . . . . . . . Construction Impeded . | . . . . . . . . . . . Haulers Reinforced . | . . . . . . . . . . . Active Scanning Responses . | . . . . . . . . . . . Cargo Convoy Interrupts . | . . . . . . . . . . . Stealth | -11 -10 -10 -10 -9 -8 -7 -7 -6 -5 -5 --------- Run | Scr Mat Min Exi Min Mat Fac DSF Fac Fac Upp Distress Signals 2 | . . . . . 2 . . . . . Communications Jammed . | . . . . . . . . . . . Distress Signals . | . . . . . . . . . . . Times Spotted 56 | . 5 6 . . 15 . 8 1 5 16 Peak Tracking Total 10 | . 5 3 . . 4 . 6 1 3 10 Tactical Retreats 8 | . . . . . 2 . 1 1 1 3 Traps | -11 -10 -10 -10 -9 -8 -7 -7 -6 -5 -5 ------- Run | Scr Mat Min Exi Min Mat Fac DSF Fac Fac Upp Traps Triggered 7 | . . . . . 1 . 4 1 1 . Indirectly . | . . . . . . . . . . . Trap Hack Attempts . | . . . . . . . . . . . Triggered . | . . . . . . . . . . . Disarmed . | . . . . . . . . . . . Reprogrammed . | . . . . . . . . . . . Reused . | . . . . . . . . . . . Traps Extracted . | . . . . . . . . . . . Installed . | . . . . . . . . . . . Triggered 4 | . . . . . . . . . . 4 Machines | -11 -10 -10 -10 -9 -8 -7 -7 -6 -5 -5 ---------- Run | Scr Mat Min Exi Min Mat Fac DSF Fac Fac Upp Machines Disabled 2 | . . . . . . . . . . 2 Max in Single Turn 1 | . . . . . . . . . . 1 Machines Sabotaged . | . . . . . . . . . . . Garrisons Compromised . | . . . . . . . . . . . Overloaded Fab Kills . | . . . . . . . . . . . Hacking | -11 -10 -10 -10 -9 -8 -7 -7 -6 -5 -5 --------- Run | Scr Mat Min Exi Min Mat Fac DSF Fac Fac Upp Machines Accessed 8 | . . . . 1 . 1 . 4 1 1 Terminals 5 | . . . . . . 1 . 3 1 . Fabricators . | . . . . . . . . . . . Repair Stations . | . . . . . . . . . . . Recycling Units . | . . . . . . . . . . . Scanalyzers 1 | . . . . . . . . 1 . . Garrison Access . | . . . . . . . . . . . Total Hacks 11 | . . . . 1 . 1 . 7 1 1 Successful 8 | . . . . 1 . 1 . 5 . 1 Failed 3 | . . . . . . . . 2 1 . Catastrophic 1 | . . . . . . . . . 1 . Database Lockouts . | . . . . . . . . . . . Manual 4 | . . . 1 . . . . 1 1 1 Terminals 6 | . . . . . . 1 . 4 1 . Fabricators . | . . . . . . . . . . . Repair Stations . | . . . . . . . . . . . Recycling Units . | . . . . . . . . . . . Scanalyzers 3 | . . . . . . . . 3 . . Garrison Access . | . . . . . . . . . . . Terminal Hacks 5 | . . . . 1 . 1 . 2 . 1 Record 1 | . . . . . . . . . . 1 Open Door 1 | . . . . 1 . . . . . . Open DSF 3 | . . . . . . 1 . 2 . . Fabricator Hacks . | . . . . . . . . . . . Repair Station Hacks . | . . . . . . . . . . . Recycling Unit Hacks . | . . . . . . . . . . . Scanalyzer 3 | . . . . . . . . 3 . . Insert Component 1 | . . . . . . . . 1 . . Analyze 2 | . . . . . . . . 2 . . Garrison Access Hacks . | . . . . . . . . . . . Unauthorized Hacks . | . . . . . . . . . . . Terminals . | . . . . . . . . . . . Fabricators . | . . . . . . . . . . . Repair Stations . | . . . . . . . . . . . Recycling Units . | . . . . . . . . . . . Scanalyzers . | . . . . . . . . . . . Garrison Access . | . . . . . . . . . . . Data Cores Recovered . | . . . . . . . . . . . Used . | . . . . . . . . . . . Hacking Detections 4 | . . . . . . . . 3 1 . Full Trace Events . | . . . . . . . . . . . Feedback Events . | . . . . . . . . . . . Feedback Blocked . | . . . . . . . . . . . Robot Schematics Acquired . | . . . . . . . . . . . Robots Built . | . . . . . . . . . . . Authchips . | . . . . . . . . . . . Time . | . . . . . . . . . . . Total Robot Build Rating . | . . . . . . . . . . . Part Schematics Acquired 1 | . . . . . . . . 1 . . Parts Built . | . . . . . . . . . . . Authchips . | . . . . . . . . . . . Time . | . . . . . . . . . . . Total Part Build Rating . | . . . . . . . . . . . Parts Repaired . | . . . . . . . . . . . Time . | . . . . . . . . . . . Parts Recycled . | . . . . . . . . . . . Recycled Matter . | . . . . . . . . . . . Retrieved Matter . | . . . . . . . . . . . Retrieved Components . | . . . . . . . . . . . Parts Scanalyzed 1 | . . . . . . . . 1 . . Part Schematics Acquired 1 | . . . . . . . . 1 . . Parts Damaged . | . . . . . . . . . . . Bothacking | -11 -10 -10 -10 -9 -8 -7 -7 -6 -5 -5 ------------ Run | Scr Mat Min Exi Min Mat Fac DSF Fac Fac Upp Used RIF Installer . | . . . . . . . . . . . Robots Hacked . | . . . . . . . . . . . Non-combat . | . . . . . . . . . . . Combat . | . . . . . . . . . . . Robot Hacks Applied . | . . . . . . . . . . . Relay Couplers Released . | . . . . . . . . . . . Fabnet Peak Effective % . | . . . . . . . . . . . Robots Rewired . | . . . . . . . . . . . Allies Hacked . | . . . . . . . . . . . Hacks Repelled . | . . . . . . . . . . . Allies | -11 -10 -10 -10 -9 -8 -7 -7 -6 -5 -5 -------- Run | Scr Mat Min Exi Min Mat Fac DSF Fac Fac Upp Total Allies 5 | . . . . 5 . . . . . . Largest Group 5 | . . . . 5 5 . . . . . Highest-Rated Group 86 | . . . . 86 86 . . . . . Highest-Rated Ally 31 | . . . . 31 31 . . . . . Total Orders . | . . . . . . . . . . . Ally Attacks 51 | . . . . . 51 . . . . . Total Damage 609 | . . . . . 609 . . . . . Kills 8 | . . . . . 8 . . . . . Allies Corrupted . | . . . . . . . . . . . Allies Melted . | . . . . . . . . . . . Intel | -11 -10 -10 -10 -9 -8 -7 -7 -6 -5 -5 ------- Run | Scr Mat Min Exi Min Mat Fac DSF Fac Fac Upp Robot Analysis Total . | . . . . . . . . . . . Derelict Logs Recovered 3 | . . 1 . . . . . . . 2 Drone Launches . | . . . . . . . . . . . Drone Recoveries . | . . . . . . . . . . . Exploration | -11 -10 -10 -10 -9 -8 -7 -7 -6 -5 -5 ------------- Run | Scr Mat Min Exi Min Mat Fac DSF Fac Fac Upp Turns Passed 2430 | 66 31 118 192 46 439 60 127 477 375 499 Spaces Moved 3263 | 46 32 227 255 109 601 103 121 738 593 438 Core 139 | 8 . . . . . . . . . 131 Treads . | . . . . . . . . . . . Legs 128 | . . . . . . . 28 8 . 92 Wheels 377 | 38 32 5 . . . . . . 87 215 Hover 196 | . . . . . . 103 93 . . . Flight 2423 | . . 222 255 109 601 . . 730 506 . Fastest Speed 34 | 50 100 37 37 37 34 48 48 44 42 50 Average Speed 54 | 104 100 38 39 37 41 48 65 52 50 88 Slowest Speed 200 | 200 100 120 117 37 114 48 120 130 100 120 Overloaded Moves . | . . . . . . . . . . . Propulsion Burnouts . | . . . . . . . . . . . Robots Hopped 9 | . . 1 . . . . . 8 . . Cave-ins Triggered . | . . . . . . . . . . . Exploration Rate (%) 36 | 4 13 55 60 34 42 3 87 20 23 59 Regions Visited 10 Branch Regions 4 Pre-discovered Areas 1 | . . 1 . . . . . . . . Known Exits Taken 2 | . . . . . . 1 . . 1 . Unknown Exits Taken 7 | 1 1 1 1 1 1 . . 1 . . Scrap Searched 2 | . . . . 1 . . . . . 1 Spaces Dug 13 | . . . . . 7 . . 2 4 . Terrain Destroyed 13 | . . . . . 7 . . 2 4 . Melee 5 | . . . . . . . . 1 4 . Projectile 8 | . . . . . 7 . . 1 . . AOE . | . . . . . . . . . . . Terrain Rammed . | . . . . . . . . . . . Walls Destroyed . | . . . . . . . . . . . Machines Disabled . | . . . . . . . . . . . Actions | -11 -10 -10 -10 -9 -8 -7 -7 -6 -5 -5 --------- Run | Scr Mat Min Exi Min Mat Fac DSF Fac Fac Upp Total 3822 | 57 31 244 347 114 743 115 166 818 653 534 Wait 328 | 2 . 2 78 6 106 . 12 30 38 54 Move 3237 | 45 31 224 254 108 600 103 121 721 592 438 Hop 9 | . . 1 . . . . . 8 . . Pick Up 41 | 2 . 4 2 . 14 1 9 3 2 4 Fast Attach 30 | 6 . 2 4 . . . 4 9 2 3 Attach 39 | . . . 1 . 3 7 3 7 7 11 Detach 17 | . . . . . 2 . . 9 . 6 Swap 2 | . . . . . . . . . 1 1 Drop 33 | . . 4 8 . . 4 . 8 3 6 Fire 43 | 2 . 7 . . 18 . . 3 2 11 Melee 8 | . . . . . . . . 2 6 . Ram . | . . . . . . . . . . . Kick 1 | . . . . . . . 1 . . . Crush . | . . . . . . . . . . . Escape Stasis 32 | . . . . . . . 14 18 . . Rewire 2 | . . . . . . . 2 . . . Trap . | . . . . . . . . . . . Miscellaneous . | . . . . . . . . . . . Route ------- -11/Scrapyard -10/Materials -10/Mines (discovered 2 exits: [*Mat] / *Exi) -10/Exiles -9/Mines (discovered 2 exits: [*Mat x2]) -8/Materials -7/Factory -7/DSF -6/Factory -5/Factory -5/Upper Caves History --------- Turn | Location | Event 27 | -11/Scrapyard | Discovered new exit (range 16) 67 | -11/Scrapyard | Entered Materials 81 | -10/Materials | Discovered new exit (range 15) 98 | -10/Materials | Entered Mines 174 | -10/Mines | Discovered new exit (range 8) 213 | -10/Mines | Deemed a non-threat by the Exiles lab entrance 213 | -10/Mines | Discovered new exit (range 5) 216 | -10/Mines | Entered Exiles 226 | -10/Exiles | Met 8R-AWN 232 | -10/Exiles | Met EX-HEX 243 | -10/Exiles | Met EX-BIN 248 | -10/Exiles | Aligned with FarCom system 249 | -10/Exiles | Given EX-Vault access code 258 | -10/Exiles | Opened EX-Vault 261 | -10/Exiles | Found Prototype Energy Cannon 261 | -10/Exiles | Identified Latent Energy Streamer 264 | -10/Exiles | Found Prototype Device 264 | -10/Exiles | Identified Trap Reconfigurator 311 | -10/Exiles | Build established: Mutant 360 | -10/Exiles | Found Prototype Storage 372 | -10/Exiles | Exiles lab attacked by MAIN.C 405 | -10/Exiles | Discovered new exit (range 10) 408 | -10/Exiles | Left Exiles lab with Lightpack 2.0 408 | -10/Exiles | Entered Mines 413 | -9/Mines | Met a Derelict who couldn't figure out how to use a Trap Extractor 438 | -9/Mines | Discovered new exit (range 9) 440 | -9/Mines | Discovered new exit (range 15) 447 | -9/Mines | Assisted by bots powering up and referring to "LRC-V3" 454 | -9/Mines | Entered Materials 454 | -8/Materials | Accompanied by 5 allies 454 | -8/Materials | Evolved 4 slots: Power x1, Propulsion x2, Utility x1 454 | -8/Materials | Identified Lightpack 2.0 459 | -8/Materials | Led the pair of lost Derelicts to an unsafe place 547 | -8/Materials | Garrison activated, responded to threat 744 | -8/Materials | Build established: Hauler-Mutant 888 | -8/Materials | Discovered new exit (range 11) 893 | -8/Materials | Entered Factory 893 | -7/Factory | Evolved 2 slots: Utility x2 953 | -7/Factory | Identified exit to DSF 953 | -7/Factory | Entered DSF 988 | -7/DSF | Additional patrols routed to DSF 1054 | -7/DSF | Lost 8 parts (2p4n1u1w) 1055 | -7/DSF | Core integrity fell below 50% 1058 | -7/DSF | Discovered new exit (range 16) 1080 | -7/DSF | Entered Factory 1080 | -6/Factory | Evolved 2 slots: Propulsion x2 1394 | -6/Factory | Spotted B-75 Beast 1552 | -6/Factory | Discovered new exit (range 4) 1557 | -6/Factory | Entered another Factory area 1557 | -5/Factory | Evolved 2 slots: Propulsion x2 1874 | -5/Factory | Lost 5 parts (4n1u) 1926 | -5/Factory | Discovered new exit (range 7) 1931 | -5/Factory | Identified exit to Upper Caves 1932 | -5/Factory | Entered Upper Caves 2015 | -5/Upper Caves | Acquired the password to a Derelict Tinkerer's latest research 2022 | -5/Upper Caves | Found Prototype Special Weapon 2024 | -5/Upper Caves | Identified Molecular Deconstructor 2083 | -5/Upper Caves | Found Alien Artifact 2085 | -5/Upper Caves | Identified Dimensional Node Initializer 2085 | -5/Upper Caves | Initialized slip node 2179 | -5/Upper Caves | Core integrity fell below 50% 2193 | -5/Upper Caves | Lost 4 parts (1p3n) 2258 | -5/Upper Caves | Learned 8 Factory zone layouts 2314 | -5/Upper Caves | Attracted the attention of an 0b10 checkpoint 2329 | -5/Upper Caves | Caught by Unaware searching for contraband prototypes 2360 | -5/Upper Caves | Attracted the attention of an 0b10 outpost 2370 | -5/Upper Caves | Core integrity fell below 20% 2385 | -5/Upper Caves | Learned Factory trap positions 2393 | -5/Upper Caves | Lost 6 parts (1p5n) 2431 | -5/Upper Caves | Destroyed by P-70 Sage with Tesla Rifle Last Messages --------------- 02359_ Carbon-fiber Leg destroyed. 02360_ Y-72 Warden: "DETECTED UNIDENTIFIED DERELICT." 02361_ Arm. Huge Wheel destroyed. 02362_ Neutrino Core destroyed. 02364_ Y-72 Warden: "REQUESTING BACKUP." 02364_ Dropped Carbon-fiber Leg. 02364_ Dropped Imp. Plasma Cutter. 02365_ Dropped Assault Rifle. 02365_ Dropped Lgt. Angular Momentum Engine. 02366_ Dropped Lightpack 2.0. 02371_ System corrupted: Matter fused (-6). 02385_ Acquired derelict log, extracted data. Data stored: Factory trap records. 02405_ P-70 Sage resets S-27 Virus, system corruption cleaned. 02422_ Penetrated by Slug. 02425_ Searching scrap... 02425_ Found Imp. Focal Shield. 02425_ Found 42 Matter. 02426_ Acquired 34 matter. 02426_ Slug penetrates Earth. Map ----- +----------------------------------------------------+ | ??????????????????????????????#"""""#????????????? | | ??????????????????????????????#"" ""#????????????? | | ????####??????????????????????#"" ""#????????????? | | ???## ##?????????????????????##" "##????????????? | | ???# ##?????????????????##### ###???????????? | | ???# #??#####??????????# " ##?????????## | | ???# #?## ##?????????# #???####??#X | | ???# #### #????######### #?### ##?# | | ??## # # ### ##???# ##?## % ### #?#" | | ??# # ## ##?## ##?## # # #?### | | ??# #?# #??### % #??# # | | ??# ### ###### ## #### | | ??# ## ### ## | | ??# ##### ### #### #?## ## | | ??# ## ##???## ##?# #??# #??### ## | | ??# ### #?????# ##??# #??# ???# | | ??## ## ## ##?????# ##### #??# ??# ## ## | | ???# # ### #??????# #??##### ?# ## #? | | ???# # #?# #?????#########??????? ## #? | | ???# ## ##?# ??????????###?????##?? ## ####? | | ???# ## #??## ##???????## #????# #???## #???? | | ???# ## #?### #???????## #??## #?? ## ##??? | | ???# ## ??# ##?????## #??## ## ! #??? | | ???# # ??# #### #??## !%!#??? | | ???# # ##???# #?## ! ### | | ???# # ?????# @ ### % # | | ???# # ?????# ### !#??## ## | | ???# # ??????# ???## ##### #? | | ???# # ???????????#### % ## | | ???# # ??????????# ## ! #"" | | ???# # #????????# ## ####### p $ | | ???# # #???????? ## #?????### ## | | ???# # #??????## ######### # %! | | ???# # #????### ##### # %" | | ???# # #?#### #???# ###### | | ??## # ### !% #???# #????## " | | ?## # "## #???# #?????###"" | | ?# ! ####???# #???????### ## | | ?# ### #???#### #??????????# ####?? | | ?## ###?# % #??## #???????????# ##?????? | | ?## ##???# ! #### ###??????????##??????? | | ?# #????# #####??????????????? | | ?# ##???#### ## ##?????????????? | | ?## #??????## ### ##????????????? | | ??## ##???????## #?## ##??#####????? | | ???###?????????# "#?### ### ##?# ##???? | | ???????????????# ##???## #?## #?? #???? | | ???????????????## ##?????# ##?## #?? #???? | | ????????????????###??????###??# #??# #???? | | ????????????? ######??????????# #### #???? | +----------------------------------------------------+ Best States ------------- Heat Dissipation 40 Energy Generation 32 Energy Capacity 365 Matter Stores 300 Matter Capacity 300 Sight Range 22 Terrain Scan Density 210 Evasion (%) 63 Authchip Count 2 Item Schematics ----------------- Xenon Bombardment Thruster | -6/Factory | Scanalyzed Robot Schematics ------------------ None Fabricated ------------ Nothing Alien Tech Used ----------------- Dimensional Node Initializer Achievements -------------- Deconstruction Part-time Excavator Challenges ------------ None Game ------ Seed NodeLinkedLoader Manual? 0 Play Time 00:48:49 Cumulative 58.4 hours Start 2022.05.07 @ 21:13:27 End 2022.05.07 @ 22:03:44 Sessions 1 Manual Loads 0 Difficulty Rogue Special Mode None Game No. 68 Rogue 68 Adventurer 0 Explorer 0 Win Type - Total 0 Types 0/0/0/0/0/0/0/0/0 Lore% 34 Gallery% 43 Achievement% 34 Wizard Run 0 Options --------- ASCII 0 Keyboard 0 Movement Mouse Keybinds 0 Fullscreen 1 Font 18/SmallcapsGlow Map View 76x50 Tactical HUD 1 Map Filters NONE Filters NONE Steam 1 RUN: fc142fd2-aa08-479f-9ec1-17fda2fc1129